lending/lending_fUSD_20251106
["ID","MTS","AMOUNT","RATE_DAILY","PERIOD"]
[393258646,1762397233391,250.0,0.00038597,120]
[393258647,1762397233486,156.587,0.00038597,120]
[393258648,1762397233576,429.318,0.00038597,120]
[393258649,1762397233655,500.0,0.00038597,120]
[393258650,1762397233732,151.0,0.00038597,120]
[393258651,1762397233845,250.0,0.00038597,120]
[393258652,1762397233928,518.5,0.00038597,120]
[393258653,1762397234006,250.0,0.00038597,120]
[393258654,1762397234109,445.202766,0.00038597,120]
[393258655,1762397234184,500.0,0.00038597,120]
[393258656,1762397234664,537.6845,0.00038597,120]
[393258657,1762397234737,250.0,0.00038597,120]
[393258658,1762397234932,500.0,0.00038597,120]
[393258659,1762397235023,250.0,0.00038597,120]
[393258660,1762397235113,250.0,0.00038597,120]
[393258661,1762397235469,461.67526834,0.00038597,120]
[393258662,1762397236069,478.75725327,0.00038597,120]
[393258663,1762397236143,250.0,0.00038597,120]
[393258664,1762397236685,496.47127164,0.00038597,120]
[393258665,1762397236753,250.0,0.00038597,120]
[393258666,1762397237120,500.0,0.00038597,120]
[393258667,1762397237355,250.0,0.00038597,120]
[393258668,1762397237492,151.0,0.00038597,120]
[393258669,1762397237737,500.0,0.00038597,120]
[393258670,1762397237893,514.84070869,0.00038597,120]
[393258671,1762397238095,151.0,0.00038597,120]
[393258672,1762397238219,156.08344572,0.00038597,120]
[393258673,1762397238323,250.0,0.00038597,120]
[393258674,1762397238391,500.0,0.00038597,120]
[393258675,1762397238557,533.88981491,0.00038597,120]
[393258676,1762397238698,151.0,0.00038597,120]
[393258677,1762397238946,250.0,0.00038597,120]
[393258678,1762397239024,500.0,0.00038597,120]
[393258679,1762397239170,553.64373807,0.00038597,120]
[393258680,1762397239349,151.0,0.00038597,120]
[393258681,1762397239750,500.0,0.00038597,120]
[393258682,1762397240378,500.0,0.00038597,120]
[393258683,1762397240603,250.0,0.00038597,120]
[393258684,1762397241017,500.0,0.00038597,120]
[393258685,1762397241214,250.0,0.00038597,120]
[393258686,1762397241651,500.0,0.00038597,120]
[393258687,1762397241861,250.0,0.00038597,120]
[393258688,1762397242405,500.0,0.00038597,120]
[393258689,1762397242485,250.0,0.00038597,120]
[393258690,1762397242613,151.0,0.00038597,120]
[393258691,1762397242753,520.0,0.00038597,120]
[393258692,1762397243093,500.0,0.00038597,120]
[393258693,1762397243384,539.24,0.00038597,120]
[393258694,1762397243568,250.0,0.00038597,120]
[393258695,1762397243769,156.587,0.00038597,120]
[393258696,1762397243996,559.19188,0.00038597,120]
[393258697,1762397244150,500.0,0.00038597,120]
[393258698,1762397244222,250.0,0.00038597,120]
[393258699,1762397244387,162.380719,0.00038597,120]
[393258700,1762397244626,579.88197956,0.00038597,120]
[393258701,1762397244882,250.0,0.00038597,120]
[393258702,1762397245366,200.0,0.00038597,60]
[393258703,1762397245435,250.0,0.00038597,120]
[393258704,1762397245714,601.3376128,0.00038597,120]
[393258705,1762397246031,207.4,0.00038597,60]
[393258706,1762397246210,250.0,0.00038597,120]
[393258707,1762397246273,500.0,0.00038597,120]
[393258708,1762397246342,623.58710448,0.00038597,120]
[393258709,1762397246763,162.380719,0.00038597,120]
[393258710,1762397246832,215.0738,0.00038597,60]
[393258711,1762397246899,500.0,0.00038597,120]
[393258712,1762397246968,646.65982734,0.00038597,120]
[393258713,1762397247392,223.0315306,0.00038597,60]
[393258714,1762397247473,500.0,0.00038597,120]
[393258715,1762397247598,670.58624095,0.00038597,120]
[393258716,1762397248037,231.28369723,0.00038597,60]
[393258717,1762397248112,500.0,0.00038597,120]
[393258718,1762397248185,670.58624095,0.00038597,120]
[393258719,1762397248682,239.84119403,0.00038597,60]
[393258720,1762397248773,500.0,0.00038597,120]
[393258721,1762397249340,500.0,0.00038597,120]
[393258722,1762397249418,248.71531821,0.00038597,60]
[393258723,1762397249964,500.0,0.00038597,120]
[393258724,1762397250077,257.91778498,0.00038597,60]
[393258725,1762397250341,620.0,0.00038597,120]
[393258726,1762397250587,500.0,0.00038597,120]
[393258727,1762397250704,267.46074303,0.00038597,60]
[393258728,1762397251084,642.94,0.00038597,120]
[393258729,1762397251285,500.0,0.00038597,120]
[393258730,1762397251381,277.35679052,0.00038597,60]
[393258731,1762397251709,642.94,0.00038597,120]
[393258732,1762397252218,277.35679052,0.00038597,60]
[393258733,1762397255601,151.0,0.00038597,120]
[393258734,1762397256198,151.0,0.00038597,120]
[393258735,1762397256972,151.0,0.00038597,120]
[393258736,1762397257599,151.0,0.00038597,120]
[393258737,1762397258253,151.0,0.00038597,120]
[393258738,1762397258896,151.0,0.00038597,120]
[393258739,1762397259556,151.0,0.00038597,120]
[393258740,1762397260210,151.0,0.00038597,120]
[393258741,1762397261007,151.0,0.00038597,120]
[393258742,1762397261652,151.0,0.00038597,120]
[393258743,1762397267557,250.0,0.00038597,120]
[393258744,1762397268192,250.0,0.00038597,120]
[393258745,1762397268803,250.0,0.00038597,120]
[393258746,1762397269468,250.0,0.00038597,120]
[393258747,1762397270101,250.0,0.00038597,120]
[393258749,1762397351715,319.805463,0.00038597,120]
[393258757,1762397379377,500.0,0.00038608,120]
[393258758,1762397379650,500.0,0.00038608,120]
[393258761,1762397382363,500.0,0.00038608,120]
[393258762,1762397382652,500.0,0.00038608,120]
[393258763,1762397382907,500.0,0.00038608,120]
[393258764,1762397383142,500.0,0.00038608,120]
[393258765,1762397383398,500.0,0.00038608,120]
[393258766,1762397383683,500.0,0.00038608,120]
[393258767,1762397383949,500.0,0.00038608,120]
[393258768,1762397384221,612.92579643,0.00038608,120]
[393258793,1762397432049,-2697.7,0.00015599,2]
[393258794,1762397432059,-1539.74778568,0.0001565,2]
[393258795,1762397432068,-300.0,0.00015702,2]
[393258796,1762397432076,-195.0,0.00015702,2]
[393258797,1762397432086,-1200.0,0.00015804,2]
[393258798,1762397432105,-3300.9,0.00015805,2]
[393258799,1762397432114,-326.42421284,0.00015896,2]
[393258800,1762397432123,-195.0,0.00015896,2]
[393258801,1762397432133,-300.0,0.00015942,2]
[393258802,1762397432142,-150.0,0.00015943,2]
[393258803,1762397432151,-500.0,0.00015943,2]
[393258804,1762397432160,-500.0,0.00015943,2]
[393258805,1762397432169,-500.0,0.00015943,2]
[393258806,1762397432178,-500.0,0.00015943,2]
[393258807,1762397432187,-500.0,0.00015943,2]
[393258808,1762397432196,-500.0,0.00015943,2]
[393258809,1762397432205,-500.0,0.00015943,2]
[393258810,1762397432215,-500.0,0.00015943,2]
[393258811,1762397432224,-500.0,0.00015943,2]
[393258812,1762397432233,-483.71467824,0.00015943,2]
[393258813,1762397432242,-500.0,0.00015943,2]
[393258814,1762397432252,-500.0,0.00015943,2]
[393258816,1762397432261,-500.0,0.00015943,2]
[393258817,1762397432271,-5774.15,0.00015945,2]
[393258818,1762397432280,-999.0,0.00016187,3]
[393258819,1762397432288,-5925.87,0.00016192,2]
[393258820,1762397432298,-150.0,0.000162,2]
[393258821,1762397432307,-2890.0,0.0001627,2]
[393258822,1762397432316,-150.0,0.00016278,2]
[393258823,1762397432325,-2890.0,0.0001631,2]
[393258824,1762397432334,-518.0,0.00016327,2]
[393258825,1762397432343,-500.0,0.00016356,2]
[393258826,1762397432353,-150.0,0.00016378,2]
[393258827,1762397432362,-5000.0,0.00016391,2]
[393258828,1762397432371,-1000.0,0.00016391,2]
[393258829,1762397432380,-1566.6161,0.00016391,2]
[393258830,1762397432389,-2500.0,0.00016391,2]
[393258831,1762397432399,-344.25765145,0.00016391,2]
[393258832,1762397432408,-14282.41959784,0.00016391,2]
[393258833,1762397432418,-8957.92825639,0.00016391,2]
[393258834,1762397432427,-245.7,0.00016399,2]
[393258835,1762397432436,-500.0,0.00016438,2]
[393258836,1762397432445,-500.0,0.00016438,2]
[393258837,1762397432455,-500.0,0.00016438,2]
[393258838,1762397432464,-514.58315267,0.00016438,2]
[393258839,1762397432476,-2890.0,0.00016462,2]
[393258840,1762397432486,-2177.5546,0.00016466,2]
[393258841,1762397432496,-163.32,0.00016481,2]
[393258842,1762397432507,-714.1,0.00016481,3]
[393258844,1762397432516,-151.0,0.00016488,2]
[393258846,1762397432526,-151.0,0.00016488,2]
[393258847,1762397432536,-151.0,0.00016488,2]
[393258848,1762397432546,-204.62845032,0.0001649,2]
[393258849,1762397432556,-176.02824787,0.0001649,2]
[393258850,1762397432566,-464.68957274,0.0001649,2]
[393258851,1762397432576,-187.78949499,0.0001649,2]
[393258852,1762397432585,-150.0,0.0001649,2]
[393258853,1762397432595,-500.0,0.0001649,2]
[393258854,1762397432604,-500.0,0.0001649,2]
[393258855,1762397432614,-508.96795556,0.0001649,2]
[393258856,1762397432624,-500.0,0.0001649,2]
[393258857,1762397432633,-500.0,0.0001649,2]
[393258858,1762397432643,-500.0,0.0001649,2]
[393258859,1762397432652,-500.0,0.0001649,2]
[393258860,1762397432662,-500.0,0.0001649,2]
[393258861,1762397432671,-500.0,0.0001649,2]
[393258862,1762397432680,-70518.49045823,0.00016491,2]
[393258863,1762397432694,-10304.73895414,0.00016491,2]
[393258870,1762397437928,-1755.50193159,0.00016491,2]
[393258871,1762397437939,-36376.26125265,0.00016491,2]
[393258872,1762397437982,-4808.35309727,0.00016491,2]
[393258873,1762397437993,-621.67438837,0.00016491,2]
[393258874,1762397438005,-6135.64830319,0.00016491,2]
[393258875,1762397438101,-720.245,0.00016491,2]
[393258876,1762397438112,-1811.16,0.00016491,2]
[393258877,1762397438123,-749.74194093,0.00016491,2]
[393258878,1762397438134,-300.6,0.00016491,2]
[393258879,1762397438146,-2737.53953495,0.00016491,2]
[393258880,1762397438158,-3234.24970126,0.00016491,2]
[393258881,1762397438169,-10677.90834783,0.00016491,2]
[393258906,1762397439974,-269247.88708959,0.00016491,2]
[393258907,1762397439983,-1000.0,0.00016491,2]
[393258908,1762397439992,-176.91,0.00016493,2]
[393258909,1762397440002,-1396.88,0.00016493,2]
[393258910,1762397440011,-176.91,0.00016493,2]
[393258911,1762397440021,-176.91,0.00016493,2]
[393258912,1762397440031,-176.91,0.00016493,2]
[393258913,1762397440040,-221.80400124,0.00016531,2]
[393258914,1762397440050,-500.0,0.00016558,2]
[393258915,1762397440059,-500.0,0.00016558,2]
[393258916,1762397440069,-500.0,0.00016558,2]
[393258917,1762397440078,-14282.41959783,0.00016559,2]
[393258918,1762397440087,-8957.92825633,0.00016559,2]
[393258919,1762397440096,-5000.0,0.00016626,2]
[393258920,1762397440106,-2890.0,0.00016627,2]
[393258921,1762397440115,-500.0,0.00016684,2]
[393258922,1762397440124,-500.0,0.00016684,2]
[393258923,1762397440134,-172.85,0.0001669,2]
[393258924,1762397440143,-2630.623,0.0001669,2]
[393258925,1762397440155,-893.73840764,0.00016706,2]
[393258926,1762397440165,-500.0,0.00016712,2]
[393258927,1762397440175,-180.98,0.00016712,2]
[393258928,1762397440185,-2890.0,0.00016722,2]
[393258929,1762397440195,-344.25765138,0.00016726,2]
[393258930,1762397440204,-14282.41959783,0.00016726,2]
[393258931,1762397440213,-8957.92825633,0.00016726,2]
[393258932,1762397440223,-151.0,0.00016733,2]
[393258933,1762397440232,-2890.0,0.00016736,2]
[393258934,1762397440241,-2890.0,0.00016741,2]
[393258935,1762397440250,-1186.0,0.00016747,2]
[393258936,1762397440259,-2890.0,0.00016751,2]
[393258937,1762397440268,-518.0,0.00016771,2]
[393258938,1762397440277,-150.0,0.00016787,2]
[393258939,1762397440286,-150.0,0.00016787,2]
[393258940,1762397440296,-150.0,0.00016787,2]
[393258941,1762397440305,-2890.0,0.00016798,2]
[393258942,1762397440315,-293.68,0.000168,2]
[393258943,1762397440324,-2400.0,0.000168,6]
[393258944,1762397440333,-2890.0,0.00016894,2]
[393258945,1762397440343,-344.25765138,0.00016894,2]
[393258946,1762397440352,-14282.41959783,0.00016894,2]
[393258947,1762397440361,-8957.92825633,0.00016894,2]
[393258948,1762397440370,-4800.0,0.000169,6]
[393258949,1762397440379,-1186.0,0.00016911,2]
[393258950,1762397440389,-500.0,0.00016916,2]
[393258951,1762397440398,-500.0,0.00016916,2]
[393258953,1762397440409,-500.0,0.00016916,2]
[393258954,1762397440418,-593.28012558,0.00016916,2]
[393258956,1762397440427,-400.36653205,0.00016916,2]
[393258958,1762397440437,-5014.7760552,0.00016917,2]
[393258960,1762397440446,-151.0,0.00016917,2]
[393258962,1762397440455,-162.119014,0.00016917,2]
[393258963,1762397440464,-151.0,0.00016917,2]
[393258965,1762397440474,-151.0,0.00016917,2]
[393258967,1762397440484,-282.563176,0.00016917,2]
[393258969,1762397440493,-151.0,0.00016917,2]
[393258971,1762397440502,-151.0,0.00016917,2]
[393258973,1762397440511,-151.0,0.00016917,2]
[393258975,1762397440520,-173.189992,0.00016917,2]
[393258977,1762397440529,-151.0,0.00016917,2]
[393258978,1762397440538,-158.658734,0.00016917,2]
[393258980,1762397440547,-167.749093,0.00016917,2]
[393258983,1762397440557,-151.0,0.00016917,2]
[393258985,1762397440567,-151.0,0.00016917,2]
[393258987,1762397440576,-151.0,0.00016917,2]
[393258989,1762397440586,-151.0,0.00016917,2]
[393258991,1762397440595,-151.0,0.00016917,2]
[393258993,1762397440604,-151.0,0.00016917,2]
[393258995,1762397440614,-151.0,0.00016917,2]
[393258997,1762397440623,-151.0,0.00016917,2]
[393258999,1762397440633,-151.0,0.00016917,2]
[393259000,1762397440643,-151.0,0.00016917,2]
[393259002,1762397440654,-151.0,0.00016917,2]
[393259004,1762397440663,-282.606255,0.00016917,2]
[393259005,1762397440673,-151.0,0.00016917,2]
[393259006,1762397440683,-151.0,0.00016917,2]
[393259007,1762397440692,-153.092827,0.00016917,2]
[393259008,1762397440701,-151.878716,0.00016917,2]
[393259009,1762397440711,-151.0,0.00016917,2]
[393259010,1762397440720,-514.977228,0.00016917,2]
[393259011,1762397440730,-514.977228,0.00016917,2]
[393259012,1762397440739,-514.977228,0.00016917,2]
[393259013,1762397440748,-158.161104,0.00016917,2]
[393259014,1762397440758,-514.977228,0.00016917,2]
[393259015,1762397440767,-151.0,0.00016917,2]
[393259016,1762397440776,-151.481973,0.00016917,2]
[393259017,1762397440785,-151.0,0.00016917,2]
[393259018,1762397440795,-151.0,0.00016917,2]
[393259019,1762397440804,-151.0,0.00016917,2]
[393259020,1762397440813,-151.0,0.00016917,2]
[393259021,1762397440823,-162.639499,0.00016917,2]
[393259022,1762397440834,-161.257771,0.00016917,2]
[393259023,1762397440848,-151.0,0.00016917,2]
[393259024,1762397440858,-151.0,0.00016917,2]
[393259025,1762397440867,-167.978826,0.00016917,2]
[393259026,1762397440876,-151.0,0.00016917,2]
[393259027,1762397440888,-151.0,0.00016917,2]
[393259028,1762397440897,-158.910665,0.00016917,2]
[393259029,1762397440908,-151.0,0.00016917,2]
[393259030,1762397440920,-151.0,0.00016917,2]
[393259031,1762397440929,-151.865307,0.00016917,2]
[393259032,1762397440938,-151.0,0.00016917,2]
[393259033,1762397440948,-151.0,0.00016917,2]
[393259034,1762397440957,-158.760107,0.00016917,2]
[393259035,1762397440966,-160.953111,0.00016917,2]
[393259036,1762397440976,-153.748117,0.00016917,2]
[393259037,1762397440985,-153.748117,0.00016917,2]
[393259038,1762397440995,-153.748117,0.00016917,2]
[393259039,1762397441005,-153.748117,0.00016917,2]
[393259040,1762397441014,-500.0,0.00016927,2]
[393259041,1762397441024,-150.0,0.00016927,2]
[393259042,1762397441033,-150.0,0.00016927,2]
[393259043,1762397441043,-150.0,0.00016927,2]
[393259044,1762397441051,-150.0,0.00016927,2]
[393259045,1762397441060,-150.0,0.00016927,2]
[393259046,1762397441069,-150.0,0.00016927,2]
[393259047,1762397441079,-150.0,0.00016927,2]
[393259048,1762397441088,-500.0,0.00016927,2]
[393259049,1762397441098,-500.0,0.00016927,2]
[393259050,1762397441108,-154.0,0.00016927,2]
[393259051,1762397441117,-150.0,0.00016927,2]
[393259052,1762397441127,-780.0,0.00016927,2]
[393259053,1762397441136,-150.0,0.00016927,2]
[393259054,1762397441145,-500.0,0.00016927,2]
[393259055,1762397441156,-150.0,0.00016927,2]
[393259056,1762397441166,-150.0,0.00016927,2]
[393259057,1762397441175,-150.0,0.00016927,2]
[393259058,1762397441185,-150.0,0.00016927,2]
[393259059,1762397441195,-300.0,0.0001693,2]
[393259060,1762397441203,-500.0,0.00016961,2]
[393259061,1762397441212,-300.0,0.00016961,2]
[393259062,1762397441221,-195.6583026,0.00016961,2]
[393259063,1762397441230,-2705.08854,0.00016961,2]
[393259064,1762397441239,-1186.0,0.00016967,2]
[393259065,1762397441248,-500.0,0.00016973,2]
[393259066,1762397441257,-173.56770186,0.00016973,2]
[393259067,1762397441266,-500.0,0.00016973,2]
[393259068,1762397441275,-500.0,0.00016973,2]
[393259069,1762397441284,-171.54256659,0.00016973,2]
[393259070,1762397441294,-500.0,0.00016973,2]
[393259071,1762397441303,-478.27180681,0.00016973,2]
[393259072,1762397441313,-500.0,0.00016973,2]
[393259073,1762397441322,-10493.42,0.00016986,2]
[393259074,1762397441332,-2326.0,0.00016986,2]
[393259075,1762397441340,-151.0,0.00016987,2]
[393259077,1762397441560,-500.0,0.00016989,2]
[393259078,1762397441571,-500.0,0.00016989,2]
[393259079,1762397441580,-500.0,0.00016989,2]
[393259080,1762397441590,-73140.11371544,0.0001699,2]
[393259081,1762397441600,-152.337565,0.0001699,2]
[393259082,1762397441610,-151.0,0.0001699,2]
[393259083,1762397441620,-151.0,0.0001699,2]
[393259084,1762397441629,-199.945791,0.0001699,2]
[393259085,1762397441639,-151.0,0.0001699,2]
[393259086,1762397441648,-151.0,0.0001699,2]
[393259087,1762397441658,-151.0,0.0001699,2]
[393259088,1762397441668,-151.0,0.0001699,2]
[393259089,1762397441677,-151.0,0.0001699,2]
[393259090,1762397441687,-157.114055,0.0001699,2]
[393259091,1762397441696,-153.892551,0.0001699,2]
[393259092,1762397441706,-152.451856,0.0001699,2]
[393259093,1762397441716,-151.0,0.0001699,2]
[393259094,1762397441725,-151.0,0.0001699,2]
[393259096,1762397441734,-151.0,0.0001699,2]
[393259097,1762397441743,-170.952355,0.0001699,2]
[393259098,1762397441752,-151.0,0.0001699,2]
[393259099,1762397441762,-151.0,0.0001699,2]
[393259100,1762397441771,-151.0,0.0001699,2]
[393259101,1762397441780,-794.96,0.0001699,2]
[393259102,1762397441789,-151.0,0.0001699,2]
[393259103,1762397441798,-151.0,0.0001699,2]
[393259104,1762397441807,-151.0,0.0001699,2]
[393259105,1762397441817,-151.0,0.0001699,2]
[393259106,1762397441826,-152.084168,0.0001699,2]
[393259107,1762397441839,-215.804278,0.0001699,2]
[393259108,1762397441849,-151.0,0.0001699,2]
[393259109,1762397441858,-160.400673,0.0001699,2]
[393259110,1762397441868,-162.453102,0.0001699,2]
[393259111,1762397441877,-151.823142,0.0001699,2]
[393259112,1762397441887,-158.096626,0.0001699,2]
[393259113,1762397441896,-151.0,0.0001699,2]
[393259114,1762397441907,-153.994783,0.0001699,2]
[393259115,1762397441917,-151.0,0.0001699,2]
[393259116,1762397441927,-151.0,0.0001699,2]
[393259117,1762397441936,-151.0,0.0001699,2]
[393259118,1762397441946,-158.083088,0.0001699,2]
[393259119,1762397441955,-157.112862,0.0001699,2]
[393259120,1762397441964,-151.0,0.0001699,2]
[393259121,1762397441974,-151.0,0.0001699,2]
[393259122,1762397441983,-151.0,0.0001699,2]
[393259123,1762397441997,-151.0,0.0001699,2]
[393259124,1762397442007,-371.186349,0.0001699,2]
[393259125,1762397442015,-371.186349,0.0001699,2]
[393259126,1762397442024,-371.186349,0.0001699,2]
[393259127,1762397442034,-371.186349,0.0001699,2]
[393259128,1762397442043,-151.0,0.0001699,2]
[393259129,1762397442052,-151.0,0.0001699,2]
[393259130,1762397442062,-151.0,0.0001699,2]
[393259131,1762397442073,-151.0,0.0001699,2]
[393259132,1762397442082,-151.0,0.0001699,2]
[393259133,1762397442092,-151.0,0.0001699,2]
[393259134,1762397442102,-169.69964,0.0001699,2]
[393259135,1762397442113,-151.0,0.0001699,2]
[393259136,1762397442122,-277.834033,0.0001699,2]
[393259137,1762397442131,-151.0,0.0001699,2]
[393259138,1762397442140,-159.364215,0.0001699,2]
[393259139,1762397442151,-151.0,0.0001699,2]
[393259140,1762397442160,-151.0,0.0001699,2]
[393259141,1762397442169,-151.0,0.0001699,2]
[393259142,1762397442179,-151.0,0.0001699,2]
[393259143,1762397442190,-151.0,0.0001699,2]
[393259144,1762397442199,-151.0,0.0001699,2]
[393259145,1762397442211,-151.0,0.0001699,2]
[393259146,1762397442221,-151.0,0.0001699,2]
[393259147,1762397442231,-151.0,0.0001699,2]
[393259148,1762397442240,-151.0,0.0001699,2]
[393259149,1762397442249,-202.32731,0.0001699,2]
[393259150,1762397442258,-151.0,0.0001699,2]
[393259151,1762397442267,-151.0,0.0001699,2]
[393259152,1762397442276,-151.0,0.0001699,2]
[393259153,1762397442285,-151.0,0.0001699,2]
[393259154,1762397442294,-151.0,0.0001699,2]
[393259155,1762397442303,-153.23437,0.0001699,2]
[393259156,1762397442312,-514.977228,0.0001699,2]
[393259157,1762397442322,-514.977228,0.0001699,2]
[393259158,1762397442331,-514.977228,0.0001699,2]
[393259159,1762397442339,-514.977228,0.0001699,2]
[393259160,1762397442348,-151.0,0.0001699,2]
[393259161,1762397442357,-176.125161,0.0001699,2]
[393259162,1762397442366,-151.0,0.0001699,2]
[393259163,1762397442376,-151.0,0.0001699,2]
[393259164,1762397442385,-151.0,0.0001699,2]
[393259165,1762397442394,-151.0,0.0001699,2]
[393259166,1762397442405,-151.0,0.0001699,2]
[393259167,1762397442415,-151.0,0.0001699,2]
[393259168,1762397442425,-151.0,0.0001699,2]
[393259169,1762397442434,-151.0,0.0001699,2]
[393259170,1762397442443,-151.0,0.0001699,2]
[393259171,1762397442453,-168.012649,0.0001699,2]
[393259172,1762397442463,-151.0,0.0001699,2]
[393259173,1762397442474,-153.748117,0.0001699,2]
[393259174,1762397442487,-153.748117,0.0001699,2]
[393259175,1762397442497,-153.748117,0.0001699,2]
[393259176,1762397442507,-153.748117,0.0001699,2]
[393259177,1762397442516,-151.0,0.0001699,2]
[393259178,1762397442526,-151.0,0.0001699,2]
[393259179,1762397442535,-168.861383,0.0001699,2]
[393259180,1762397442545,-151.0,0.0001699,2]
[393259181,1762397442555,-153.757721,0.0001699,2]
[393259182,1762397442564,-151.0,0.0001699,2]
[393259183,1762397442574,-151.0,0.0001699,2]
[393259184,1762397442583,-151.0,0.0001699,2]
[393259185,1762397442592,-156.208277,0.0001699,2]
[393259186,1762397442601,-156.456452,0.0001699,2]
[393259187,1762397442610,-151.0,0.0001699,2]
[393259188,1762397442619,-151.0,0.0001699,2]
[393259189,1762397442629,-151.0,0.0001699,2]
[393259190,1762397442638,-151.0,0.0001699,2]
[393259191,1762397442648,-151.0,0.0001699,2]
[393259192,1762397442660,-151.0,0.0001699,2]
[393259193,1762397442669,-151.0,0.0001699,2]
[393259194,1762397442679,-151.0,0.0001699,2]
[393259195,1762397442689,-151.0,0.0001699,2]
[393259196,1762397442698,-151.0,0.0001699,2]
[393259197,1762397442708,-151.0,0.0001699,2]
[393259198,1762397442717,-154.582505,0.0001699,2]
[393259199,1762397442726,-151.0,0.0001699,2]
[393259200,1762397442736,-151.0,0.0001699,2]
[393259201,1762397442745,-151.0,0.0001699,2]
[393259202,1762397442754,-151.0,0.0001699,2]
[393259203,1762397442763,-151.0,0.0001699,2]
[393259204,1762397442772,-151.0,0.0001699,2]
[393259205,1762397442782,-191.135555,0.0001699,2]
[393259206,1762397442791,-191.135555,0.0001699,2]
[393259207,1762397442800,-151.0,0.0001699,2]
[393259208,1762397442810,-191.135555,0.0001699,2]
[393259209,1762397442819,-151.0,0.0001699,2]
[393259211,1762397442829,-191.135555,0.0001699,2]
[393259212,1762397442842,-157.712421,0.0001699,2]
[393259213,1762397442851,-151.0,0.0001699,2]
[393259214,1762397442861,-151.0,0.0001699,2]
[393259215,1762397442870,-151.0,0.0001699,2]
[393259216,1762397442879,-248.579753,0.0001699,2]
[393259217,1762397442890,-253.129001,0.0001699,2]
[393259218,1762397442899,-253.129001,0.0001699,2]
[393259219,1762397442910,-253.129001,0.0001699,2]
[393259220,1762397442921,-151.0,0.0001699,2]
[393259221,1762397442931,-253.129001,0.0001699,2]
[393259222,1762397442940,-152.568067,0.0001699,2]
[393259223,1762397442950,-215.37635,0.0001699,2]
[393259224,1762397442960,-151.0,0.0001699,2]
[393259225,1762397442971,-151.0,0.0001699,2]
[393259226,1762397442980,-158.88545,0.0001699,2]
[393259228,1762397442990,-151.0,0.0001699,2]
[393259230,1762397442999,-190.089613,0.0001699,2]
[393259231,1762397443009,-290.884509,0.0001699,2]
[393259233,1762397443018,-151.0,0.0001699,2]
[393259234,1762397443028,-151.0,0.0001699,2]
[393259235,1762397443037,-154.150333,0.0001699,2]
[393259236,1762397443048,-151.746444,0.0001699,2]
[393259237,1762397443057,-151.0,0.0001699,2]
[393259238,1762397443067,-151.0,0.0001699,2]
[393259239,1762397443076,-151.0,0.0001699,2]
[393259240,1762397443086,-151.0,0.0001699,2]
[393259241,1762397443097,-151.0,0.0001699,2]
[393259242,1762397443108,-151.0,0.0001699,2]
[393259243,1762397443119,-151.0,0.0001699,2]